[Event "*** MasterClass Titled Tuesday Blitz"]
[Site "Chess.com"]
[Date "2017.12.12"]
[Round "4"]
[White "BartoszSocko"]
[Black "Winehouse83"]
[Result "0-1"]
[WhiteElo "2525"]
[BlackElo "2438"]
[TimeControl "180+2"]
[EndTime "13:53:58 PST"]
[Termination "Winehouse83 won by resignation"]

1. e4 {[%clk 0:03:01.9]} 1... e5 {[%clk 0:03:00.8]} 2. Nf3 {[%clk 0:03:02.8]}
2... Nc6 {[%clk 0:03:01.8]} 3. Bc4 {[%clk 0:03:03.8]} 3... Bc5 {[%clk
0:03:02.6]} 4. c3 {[%clk 0:02:56.1]} 4... Nf6 {[%clk 0:03:03.1]} 5. d4 {[%clk
0:02:56.9]} 5... exd4 {[%clk 0:03:04.1]} 6. e5 {[%clk 0:02:58.3]} 6... d5 {[%clk
0:03:04.9]} 7. Bb5 {[%clk 0:02:59.6]} 7... Ne4 {[%clk 0:03:04.9]} 8. cxd4 {[%clk
0:03:00.7]} 8... Bb6 {[%clk 0:03:06.4]} 9. Nc3 {[%clk 0:02:59.8]} 9... O-O
{[%clk 0:03:02.6]} 10. Be3 {[%clk 0:03:00.2]} 10... Bg4 {[%clk 0:02:55]} 11. Rc1
{[%clk 0:02:57.5]} 11... Kh8 {[%clk 0:02:40.6]} 12. Bxc6 {[%clk 0:02:54.5]}
12... bxc6 {[%clk 0:02:41.2]} 13. h3 {[%clk 0:02:54.3]} 13... Bh5 {[%clk
0:02:33.9]} 14. Nxe4 {[%clk 0:02:28]} 14... dxe4 {[%clk 0:02:32.6]} 15. g4
{[%clk 0:02:29.2]} 15... Bg6 {[%clk 0:02:28.5]} 16. Ng1 {[%clk 0:02:30.2]} 16...
Qd5 {[%clk 0:02:07.4]} 17. Qa4 {[%clk 0:02:19.4]} 17... f6 {[%clk 0:01:55.8]}
18. exf6 {[%clk 0:02:17.6]} 18... Rxf6 {[%clk 0:01:55]} 19. Ne2 {[%clk
0:02:18.8]} 19... Raf8 {[%clk 0:01:49.6]} 20. Qc4 {[%clk 0:01:55.9]} 20... Qd7
{[%clk 0:01:34]} 21. Nc3 {[%clk 0:01:40.7]} 21... Qe7 {[%clk 0:01:24.5]} 22. Bg5
{[%clk 0:01:32.1]} 22... e3 {[%clk 0:01:07.7]} 23. fxe3 {[%clk 0:01:27.4]} 23...
Qd6 {[%clk 0:01:02.9]} 24. Bxf6 {[%clk 0:01:24.2]} 24... Qg3+ {[%clk 0:01:02.8]}
25. Kd2 {[%clk 0:01:25.2]} 25... Rxf6 {[%clk 0:01:02.3]} 26. Rhf1 {[%clk
0:01:20.5]} 26... Rf2+ {[%clk 0:00:34.7]} 27. Rxf2 {[%clk 0:01:17.9]} 27...
Qxf2+ {[%clk 0:00:35.8]} 28. Qe2 {[%clk 0:01:19.5]} 28... Qg3 {[%clk 0:00:32.4]}
29. Rf1 {[%clk 0:01:17.2]} 29... h6 {[%clk 0:00:33.6]} 30. Qf3 {[%clk
0:01:14.1]} 30... Qh2+ {[%clk 0:00:31.5]} 31. Rf2 {[%clk 0:01:01.6]} 31... Qg1
{[%clk 0:00:32.5]} 32. Rf1 {[%clk 0:00:56.6]} 32... Qh2+ {[%clk 0:00:33.1]} 33.
Qe2 {[%clk 0:00:42.9]} 33... Qxh3 {[%clk 0:00:32.4]} 34. a3 {[%clk 0:00:44.1]}
34... Kh7 {[%clk 0:00:21.4]} 35. Na4 {[%clk 0:00:44.8]} 35... Qg3 {[%clk
0:00:12.1]} 36. Nxb6 {[%clk 0:00:44.9]} 36... axb6 {[%clk 0:00:14]} 37. Qf3
{[%clk 0:00:42.3]} 37... Qh2+ {[%clk 0:00:15]} 38. Qf2 {[%clk 0:00:40.2]} 38...
Qd6 {[%clk 0:00:15.4]} 39. Qf3 {[%clk 0:00:25.5]} 39... Qh2+ {[%clk 0:00:15]}
40. Qe2 {[%clk 0:00:25.9]} 40... Qd6 {[%clk 0:00:15.3]} 41. Rc1 {[%clk
0:00:26.5]} 41... c5 {[%clk 0:00:16.4]} 42. Qf2 {[%clk 0:00:19.2]} 42... cxd4
{[%clk 0:00:16.5]} 43. exd4 {[%clk 0:00:21.1]} 43... Qe7 {[%clk 0:00:16.7]} 44.
Kc3 {[%clk 0:00:19.6]} 44... Qg5 {[%clk 0:00:10.8]} 45. Rg1 {[%clk 0:00:14.4]}
45... c5 {[%clk 0:00:11.6]} 46. dxc5 {[%clk 0:00:10.3]} 46... bxc5 {[%clk
0:00:13.5]} 47. Rg3 {[%clk 0:00:08]} 47... Qe5+ {[%clk 0:00:14.5]} 48. Kd2
{[%clk 0:00:05.2]} 48... Qxb2+ {[%clk 0:00:14.9]} 49. Ke3 {[%clk 0:00:06.6]}
49... Qxa3+ {[%clk 0:00:15.9]} 50. Kf4 {[%clk 0:00:07.4]} 50... Qb4+ {[%clk
0:00:15.7]} 51. Ke5 {[%clk 0:00:08.5]} 51... c4 {[%clk 0:00:17.2]} 52. Qd4
{[%clk 0:00:08.6]} 52... Qe7+ {[%clk 0:00:17.8]} 53. Kf4 {[%clk 0:00:07.9]}
53... Bd3 {[%clk 0:00:16.5]} 54. Re3 {[%clk 0:00:08.6]} 54... Qc7+ {[%clk
0:00:16]} 55. Qe5 {[%clk 0:00:09.1]} 55... Qf7+ {[%clk 0:00:17.5]} 56. Kg3
{[%clk 0:00:10.2]} 56... Qf1 {[%clk 0:00:19.2]} 57. Rf3 {[%clk 0:00:07.8]} 57...
Qg1+ {[%clk 0:00:20.4]} 58. Kh4 {[%clk 0:00:06.7]} 58... g5+ {[%clk 0:00:18.7]}
59. Kh3 {[%clk 0:00:06.1]} 59... Bf1+ {[%clk 0:00:19.9]} 60. Rxf1 {[%clk
0:00:07.4]} 60... Qxf1+ {[%clk 0:00:21.4]} 61. Kg3 {[%clk 0:00:09]} 61... Qf4+
{[%clk 0:00:20.3]} 62. Qxf4 {[%clk 0:00:09.9]} 62... gxf4+ {[%clk 0:00:22.2]}
63. Kxf4 {[%clk 0:00:11.8]} 63... Kg6 {[%clk 0:00:23.8]} 64. Ke4 {[%clk
0:00:11.4]} 64... Kg5 {[%clk 0:00:25.3]} 65. Kd4 {[%clk 0:00:13.1]} 65... Kxg4
{[%clk 0:00:26.9]} 66. Kxc4 {[%clk 0:00:14.7]} 66... h5 {[%clk 0:00:28.4]} 67.
Kd3 {[%clk 0:00:16.6]} 67... Kg3 {[%clk 0:00:29.1]} 68. Ke2 {[%clk 0:00:18.1]}
68... Kg2 {[%clk 0:00:30.5]} 0-1

[Event "*** MasterClass Titled Tuesday Blitz"]
[Site "Chess.com"]
[Date "2017.12.12"]
[Round "4"]
[White "ChessWarrior7197"]
[Black "PulpanJ"]
[Result "0-1"]
[WhiteElo "2620"]
[BlackElo "2469"]
[TimeControl "180+2"]
[EndTime "13:54:19 PST"]
[Termination "PulpanJ won by resignation"]

1. e4 {[%clk 0:03:01.9]} 1... c5 {[%clk 0:02:56.1]} 2. Nf3 {[%clk 0:03:02.7]}
2... d6 {[%clk 0:02:56.6]} 3. Bb5+ {[%clk 0:03:00.2]} 3... Bd7 {[%clk
0:02:55.2]} 4. c4 {[%clk 0:03:01.1]} 4... Nf6 {[%clk 0:02:43.3]} 5. Nc3 {[%clk
0:03:01.5]} 5... a6 {[%clk 0:02:38.2]} 6. Bxd7+ {[%clk 0:03:00.8]} 6... Nbxd7
{[%clk 0:02:39.1]} 7. O-O {[%clk 0:03:01.8]} 7... e6 {[%clk 0:02:37.6]} 8. b3
{[%clk 0:03:02.1]} 8... Be7 {[%clk 0:02:33.3]} 9. d4 {[%clk 0:03:03.3]} 9...
cxd4 {[%clk 0:02:31.8]} 10. Nxd4 {[%clk 0:03:05.2]} 10... O-O {[%clk 0:02:33.7]}
11. Be3 {[%clk 0:03:06.3]} 11... Rc8 {[%clk 0:02:33.5]} 12. Rc1 {[%clk
0:03:07.3]} 12... Qa5 {[%clk 0:02:33.4]} 13. Qd2 {[%clk 0:03:04.4]} 13... Kh8
{[%clk 0:02:19]} 14. h3 {[%clk 0:02:54.4]} 14... Ne5 {[%clk 0:02:14.6]} 15. f4
{[%clk 0:02:48.7]} 15... Nc6 {[%clk 0:02:15.3]} 16. Nxc6 {[%clk 0:02:33.5]}
16... Rxc6 {[%clk 0:02:13.6]} 17. a4 {[%clk 0:02:34]} 17... Rfc8 {[%clk
0:02:13.8]} 18. Bd4 {[%clk 0:02:31.3]} 18... h6 {[%clk 0:02:07.5]} 19. Qd3
{[%clk 0:02:23.2]} 19... Nd7 {[%clk 0:02:07]} 20. Qg3 {[%clk 0:02:06.6]} 20...
Bf6 {[%clk 0:02:07.2]} 21. Bxf6 {[%clk 0:02:03.2]} 21... Nxf6 {[%clk 0:02:06.8]}
22. Rcd1 {[%clk 0:01:58.2]} 22... Qb6+ {[%clk 0:01:56.5]} 23. Kh2 {[%clk
0:01:44.2]} 23... Qxb3 {[%clk 0:01:57.3]} 24. e5 {[%clk 0:01:22.6]} 24... Nh5
{[%clk 0:01:57.5]} 25. Qg4 {[%clk 0:01:21.2]} 25... Qxc3 {[%clk 0:01:57.1]} 26.
Qxh5 {[%clk 0:01:22.2]} 26... Rxc4 {[%clk 0:01:52.3]} 27. Qxf7 {[%clk
0:01:20.4]} 27... dxe5 {[%clk 0:01:54.2]} 28. Rd7 {[%clk 0:01:16.8]} 28... exf4
{[%clk 0:01:54]} 29. Rc1 {[%clk 0:01:05.3]} 29... Qf6 {[%clk 0:01:41.5]} 30.
Qxf6 {[%clk 0:00:51.3]} 30... gxf6 {[%clk 0:01:40.7]} 31. Re1 {[%clk 0:00:51.8]}
31... R4c7 {[%clk 0:01:42.1]} 32. Rd6 {[%clk 0:00:50]} 32... e5 {[%clk
0:01:38.7]} 33. Rxf6 {[%clk 0:00:48.7]} 33... Kg7 {[%clk 0:01:39.3]} 34. Re6
{[%clk 0:00:48.1]} 34... Rc2 {[%clk 0:01:39.8]} 35. Rf1 {[%clk 0:00:28]} 35...
Re2 {[%clk 0:01:37.6]} 36. Rxf4 {[%clk 0:00:24.2]} 36... exf4 {[%clk 0:01:19.6]}
37. Rxe2 {[%clk 0:00:25.1]} 37... Kf6 {[%clk 0:01:20]} 38. Rb2 {[%clk
0:00:21.4]} 38... Rc7 {[%clk 0:01:21]} 39. Rb6+ {[%clk 0:00:21.3]} 39... Kg5
{[%clk 0:01:22.3]} 40. Kg1 {[%clk 0:00:22.6]} 40... f3 {[%clk 0:01:22]} 41. gxf3
{[%clk 0:00:21.9]} 41... Kf4 {[%clk 0:01:23.4]} 42. Kf2 {[%clk 0:00:21.9]} 42...
Rc2+ {[%clk 0:01:23.6]} 43. Ke1 {[%clk 0:00:22.3]} 43... Kxf3 {[%clk 0:01:20.3]}
44. Rxb7 {[%clk 0:00:21.2]} 44... Rc6 {[%clk 0:01:14.9]} 45. Rb4 {[%clk
0:00:17.7]} 45... Kg3 {[%clk 0:01:13.7]} 46. h4 {[%clk 0:00:18.8]} 46... h5
{[%clk 0:01:15.3]} 47. Kd2 {[%clk 0:00:18.8]} 47... Rg6 {[%clk 0:01:16.3]} 48.
a5 {[%clk 0:00:19.6]} 48... Rd6+ {[%clk 0:01:03.4]} 49. Ke3 {[%clk 0:00:14]}
49... Rd5 {[%clk 0:01:05.3]} 50. Ra4 {[%clk 0:00:12.5]} 50... Rf5 {[%clk
0:01:06.7]} 51. Ke2 {[%clk 0:00:06.5]} 51... Rf4 {[%clk 0:01:06.3]} 52. Ra3+
{[%clk 0:00:06.6]} 52... Kxh4 {[%clk 0:01:07.3]} 53. Re3 {[%clk 0:00:06.1]}
53... Rf5 {[%clk 0:01:08.1]} 54. Ra3 {[%clk 0:00:06.4]} 54... Kg4 {[%clk
0:01:09.2]} 55. Ra4+ {[%clk 0:00:03.7]} 55... Rf4 {[%clk 0:01:10.2]} 56. Ra3
{[%clk 0:00:03.4]} 56... h4 {[%clk 0:01:11.1]} 57. Ra1 {[%clk 0:00:03.6]} 57...
Rf5 {[%clk 0:01:10.6]} 58. Ra4+ {[%clk 0:00:03.8]} 58... Kg3 {[%clk 0:01:11.3]}
59. Ra3+ {[%clk 0:00:02.7]} 59... Kg2 {[%clk 0:01:12.7]} 60. Ra4 {[%clk
0:00:04.4]} 60... h3 {[%clk 0:01:10.6]} 61. Rg4+ {[%clk 0:00:05.1]} 61... Kh2
{[%clk 0:01:12]} 62. Rg6 {[%clk 0:00:06.5]} 62... Rxa5 {[%clk 0:01:13]} 63. Kf2
{[%clk 0:00:08.4]} 63... Ra2+ {[%clk 0:01:14.2]} 64. Kf1 {[%clk 0:00:09.7]}
64... a5 {[%clk 0:01:16.1]} 65. Rg5 {[%clk 0:00:11.1]} 65... a4 {[%clk
0:01:17.5]} 66. Rg4 {[%clk 0:00:12.6]} 66... a3 {[%clk 0:01:15.6]} 67. Rg6
{[%clk 0:00:13.2]} 67... Rg2 {[%clk 0:01:14.6]} 0-1

[Event "*** MasterClass Titled Tuesday Blitz"]
[Site "Chess.com"]
[Date "2017.12.12"]
[Round "4"]
[White "Kaphrep"]
[Black "Oleksandr_Bortnyk"]
[Result "1-0"]
[WhiteElo "2608"]
[BlackElo "2810"]
[TimeControl "180+2"]
[EndTime "13:54:36 PST"]
[Termination "Kaphrep won by resignation"]

1. Nf3 {[%clk 0:02:28.8]} 1... Nf6 {[%clk 0:02:56.5]} 2. g3 {[%clk 0:02:29.8]}
2... g6 {[%clk 0:02:54.6]} 3. Bg2 {[%clk 0:02:31.7]} 3... Bg7 {[%clk 0:02:56.5]}
4. O-O {[%clk 0:02:32]} 4... O-O {[%clk 0:02:58.4]} 5. c4 {[%clk 0:02:33.6]}
5... d6 {[%clk 0:03:00.3]} 6. d4 {[%clk 0:02:30.4]} 6... Nbd7 {[%clk 0:03:01.2]}
7. Qc2 {[%clk 0:02:28.2]} 7... c6 {[%clk 0:03:01.2]} 8. Rd1 {[%clk 0:02:29.3]}
8... Qc7 {[%clk 0:03:01.7]} 9. Nc3 {[%clk 0:02:25.2]} 9... e5 {[%clk 0:03:02.2]}
10. h3 {[%clk 0:02:22.8]} 10... Re8 {[%clk 0:03:03.1]} 11. e4 {[%clk 0:02:21.6]}
11... a5 {[%clk 0:02:55.6]} 12. b3 {[%clk 0:02:08.5]} 12... b5 {[%clk
0:02:13.4]} 13. dxe5 {[%clk 0:01:54]} 13... dxe5 {[%clk 0:02:07.9]} 14. Be3
{[%clk 0:01:54.5]} 14... b4 {[%clk 0:01:53.5]} 15. Na4 {[%clk 0:01:52.8]} 15...
c5 {[%clk 0:01:54.6]} 16. a3 {[%clk 0:01:39.6]} 16... Bb7 {[%clk 0:01:55.4]} 17.
Nd2 {[%clk 0:01:36.8]} 17... Bf8 {[%clk 0:01:53.5]} 18. Nb2 {[%clk 0:01:34.8]}
18... Nb8 {[%clk 0:01:46]} 19. axb4 {[%clk 0:01:30.7]} 19... axb4 {[%clk
0:01:47.9]} 20. Rxa8 {[%clk 0:01:31.9]} 20... Bxa8 {[%clk 0:01:49.6]} 21. Nd3
{[%clk 0:01:27.6]} 21... Nfd7 {[%clk 0:01:39.7]} 22. Qb2 {[%clk 0:01:26.2]}
22... Nc6 {[%clk 0:01:40.5]} 23. f4 {[%clk 0:01:16.2]} 23... exf4 {[%clk
0:01:28.5]} 24. gxf4 {[%clk 0:01:14.4]} 24... Nd4 {[%clk 0:01:17.8]} 25. Bxd4
{[%clk 0:01:11.8]} 25... cxd4 {[%clk 0:01:19.7]} 26. e5 {[%clk 0:01:13.5]} 26...
Nc5 {[%clk 0:01:04.5]} 27. Nxc5 {[%clk 0:01:07.6]} 27... Bxc5 {[%clk 0:01:06.4]}
28. Bxa8 {[%clk 0:01:05.9]} 28... d3+ {[%clk 0:01:06.6]} 29. Kh2 {[%clk
0:01:01.5]} 29... Rxa8 {[%clk 0:01:08.5]} 30. Ne4 {[%clk 0:01:03.1]} 30... Be3
{[%clk 0:01:06.8]} 31. Nf6+ {[%clk 0:00:56.8]} 31... Kf8 {[%clk 0:00:42.4]} 32.
Nd5 {[%clk 0:00:58.7]} 32... Qa7 {[%clk 0:00:41.1]} 33. Rxd3 {[%clk 0:00:59.1]}
33... Bc5 {[%clk 0:00:33.8]} 34. Nf6 {[%clk 0:00:52.4]} 34... Kg7 {[%clk
0:00:25.6]} 35. Ne4 {[%clk 0:00:48.8]} 35... Be3 {[%clk 0:00:22.4]} 36. e6+
{[%clk 0:00:37.5]} 36... Kh6 {[%clk 0:00:19.7]} 37. Qf6 {[%clk 0:00:37.1]} 37...
Qa2+ {[%clk 0:00:20.3]} 38. Kg3 {[%clk 0:00:37.7]} 38... Qe2 {[%clk 0:00:20.2]}
39. Qg5+ {[%clk 0:00:32.5]} 39... Kg7 {[%clk 0:00:21.4]} 40. Qe5+ {[%clk
0:00:34.4]} 40... Kh6 {[%clk 0:00:19.8]} 41. Qg5+ {[%clk 0:00:32.2]} 41... Kg7
{[%clk 0:00:21]} 42. Qf6+ {[%clk 0:00:34.1]} 42... Kh6 {[%clk 0:00:22.3]} 43.
exf7 {[%clk 0:00:24.5]} 43... Rf8 {[%clk 0:00:19.4]} 44. Rd8 {[%clk 0:00:21.3]}
44... Ba7 {[%clk 0:00:04.6]} 45. Qg5+ {[%clk 0:00:19.2]} 45... Kg7 {[%clk
0:00:05.8]} 46. Qe5+ {[%clk 0:00:20]} 46... Kh6 {[%clk 0:00:04.9]} 47. Qg5+
{[%clk 0:00:21]} 47... Kg7 {[%clk 0:00:06.2]} 48. Rxf8 {[%clk 0:00:21]} 48...
Qe1+ {[%clk 0:00:03.3]} 49. Kf3 {[%clk 0:00:14.2]} 49... Qf1+ {[%clk 0:00:03.5]}
50. Kg3 {[%clk 0:00:11.5]} 50... Qg1+ {[%clk 0:00:02.9]} 51. Kh4 {[%clk
0:00:12.5]} 51... Qe1+ {[%clk 0:00:04.1]} 52. Ng3 {[%clk 0:00:12.9]} 52... Kxf8
{[%clk 0:00:04.5]} 53. Qd8+ {[%clk 0:00:14]} 53... Kxf7 {[%clk 0:00:05.9]} 54.
Qd7+ {[%clk 0:00:15.4]} 54... Qe7+ {[%clk 0:00:06.1]} 55. Qxe7+ {[%clk
0:00:16.8]} 55... Kxe7 {[%clk 0:00:08]} 56. Ne4 {[%clk 0:00:17.5]} 56... Be3
{[%clk 0:00:09]} 57. Kg4 {[%clk 0:00:18.8]} 57... Ke6 {[%clk 0:00:09.5]} 58.
Ng5+ {[%clk 0:00:19.8]} 58... Kd6 {[%clk 0:00:10.4]} 59. Kf3 {[%clk 0:00:19.6]}
59... Bc1 {[%clk 0:00:10.6]} 60. Nxh7 {[%clk 0:00:20.7]} 60... Kc5 {[%clk
0:00:11.8]} 61. Ke4 {[%clk 0:00:22.1]} 61... Bd2 {[%clk 0:00:10.2]} 62. Nf8
{[%clk 0:00:23.1]} 62... g5 {[%clk 0:00:11.1]} 63. fxg5 {[%clk 0:00:24.3]} 63...
Kd6 {[%clk 0:00:12.1]} 64. h4 {[%clk 0:00:24.8]} 64... Ke7 {[%clk 0:00:13.3]}
65. Ng6+ {[%clk 0:00:26.1]} 65... Kf7 {[%clk 0:00:14.2]} 66. Nf4 {[%clk
0:00:28]} 66... Be1 {[%clk 0:00:15.3]} 67. h5 {[%clk 0:00:28.9]} 67... Bh4
{[%clk 0:00:16.9]} 68. Kf5 {[%clk 0:00:30]} 68... Bf2 {[%clk 0:00:17.4]} 69. g6+
{[%clk 0:00:30.9]} 69... Kg7 {[%clk 0:00:18.8]} 70. Kg5 {[%clk 0:00:32.1]} 70...
Be3 {[%clk 0:00:19.4]} 71. h6+ {[%clk 0:00:33.5]} 71... Kg8 {[%clk 0:00:20.8]}
72. Kf5 {[%clk 0:00:34.4]} 72... Kh8 {[%clk 0:00:22]} 73. Ne6 {[%clk 0:00:25.3]}
73... Bxh6 {[%clk 0:00:22.1]} 74. Kf6 {[%clk 0:00:26.7]} 74... Bd2 {[%clk
0:00:22.2]} 75. Kf7 {[%clk 0:00:27.8]} 75... Bc3 {[%clk 0:00:22.8]} 76. c5
{[%clk 0:00:28.6]} 76... Bg7 {[%clk 0:00:24.6]} 77. c6 {[%clk 0:00:27.5]} 77...
Be5 {[%clk 0:00:26.2]} 78. Ng5 {[%clk 0:00:25.4]} 78... Bg7 {[%clk 0:00:26.1]}
79. c7 {[%clk 0:00:26.3]} 79... Bf8 {[%clk 0:00:27.9]} 80. g7+ {[%clk
0:00:23.4]} 80... Bxg7 {[%clk 0:00:28.2]} 81. c8=Q+ {[%clk 0:00:24.4]} 1-0

[Event "*** MasterClass Titled Tuesday Blitz"]
[Site "Chess.com"]
[Date "2017.12.12"]
[Round "4"]
[White "TheLancer"]
[Black "KhalilMousavi77"]
[Result "1-0"]
[WhiteElo "2476"]
[BlackElo "2447"]
[TimeControl "180+2"]
[EndTime "13:55:09 PST"]
[Termination "TheLancer won by resignation"]

1. e4 {[%clk 0:03:01.9]} 1... c5 {[%clk 0:02:58.7]} 2. Nc3 {[%clk 0:03:01.5]}
2... Nc6 {[%clk 0:02:59.6]} 3. f4 {[%clk 0:03:02.8]} 3... g6 {[%clk 0:03:00]} 4.
Nf3 {[%clk 0:03:04.4]} 4... Bg7 {[%clk 0:03:01]} 5. Bc4 {[%clk 0:03:06]} 5... d6
{[%clk 0:03:00]} 6. f5 {[%clk 0:03:07.2]} 6... gxf5 {[%clk 0:02:54.8]} 7. O-O
{[%clk 0:03:07.9]} 7... Nd4 {[%clk 0:02:46.6]} 8. d3 {[%clk 0:03:03.2]} 8... Nf6
{[%clk 0:02:39.6]} 9. Ng5 {[%clk 0:02:40]} 9... O-O {[%clk 0:02:37.7]} 10. exf5
{[%clk 0:02:25.5]} 10... d5 {[%clk 0:02:34.7]} 11. Bb3 {[%clk 0:02:25.5]} 11...
b5 {[%clk 0:02:20.7]} 12. a4 {[%clk 0:01:44.5]} 12... c4 {[%clk 0:02:13.1]} 13.
Ba2 {[%clk 0:01:43.5]} 13... b4 {[%clk 0:02:09.7]} 14. Ne2 {[%clk 0:01:43.9]}
14... Nxc2 {[%clk 0:01:38.1]} 15. Qxc2 {[%clk 0:01:41]} 15... b3 {[%clk
0:01:39.2]} 16. Bxb3 {[%clk 0:01:31.7]} 16... Qb6+ {[%clk 0:01:39]} 17. Kh1
{[%clk 0:01:33.1]} 17... cxb3 {[%clk 0:01:40.1]} 18. Qd1 {[%clk 0:01:33.5]}
18... h6 {[%clk 0:01:31.6]} 19. Nh3 {[%clk 0:01:32.6]} 19... e5 {[%clk 0:01:16]}
20. d4 {[%clk 0:01:23.8]} 20... exd4 {[%clk 0:01:12.2]} 21. Ng3 {[%clk
0:01:11.4]} 21... Re8 {[%clk 0:01:09.3]} 22. Nf4 {[%clk 0:01:10.3]} 22... Ba6
{[%clk 0:01:09.4]} 23. Rg1 {[%clk 0:00:57.1]} 23... Re5 {[%clk 0:00:54.2]} 24.
Nfh5 {[%clk 0:00:54.5]} 24... Nxh5 {[%clk 0:00:53.5]} 25. Nxh5 {[%clk
0:00:47.1]} 25... Be2 {[%clk 0:00:51.4]} 26. a5 {[%clk 0:00:35.8]} 26... Qc6
{[%clk 0:00:37.5]} 27. Qxb3 {[%clk 0:00:28.3]} 27... Bxh5 {[%clk 0:00:36.6]} 28.
g4 {[%clk 0:00:23.1]} 28... d3 {[%clk 0:00:36.9]} 29. Qa4 {[%clk 0:00:15.5]}
29... Qxa4 {[%clk 0:00:18.6]} 30. Rxa4 {[%clk 0:00:17.4]} 30... Rae8 {[%clk
0:00:18.1]} 31. gxh5 {[%clk 0:00:15.7]} 31... Re1 {[%clk 0:00:19.4]} 32. Rg4
{[%clk 0:00:16.4]} 32... Rxg1+ {[%clk 0:00:16.7]} 33. Rxg1 {[%clk 0:00:18.3]}
33... Kh7 {[%clk 0:00:17.7]} 34. Rd1 {[%clk 0:00:18]} 34... Re2 {[%clk 0:00:18]}
35. Bf4 {[%clk 0:00:16.6]} 35... Rf2 {[%clk 0:00:15]} 36. Bg3 {[%clk 0:00:14.9]}
36... Rxb2 {[%clk 0:00:15.5]} 37. Rxd3 {[%clk 0:00:15.9]} 37... d4 {[%clk
0:00:15.7]} 38. Rf3 {[%clk 0:00:15.2]} 38... Bf6 {[%clk 0:00:15.9]} 39. Ra3
{[%clk 0:00:09.5]} 39... Rb5 {[%clk 0:00:16.8]} 40. a6 {[%clk 0:00:08.4]} 40...
Be7 {[%clk 0:00:17]} 41. Rd3 {[%clk 0:00:04.9]} 41... Bc5 {[%clk 0:00:16.5]} 42.
Be5 {[%clk 0:00:05.8]} 42... Rb6 {[%clk 0:00:17.6]} 43. Rg3 {[%clk 0:00:04.2]}
43... f6 {[%clk 0:00:17.5]} 44. Bf4 {[%clk 0:00:05.6]} 44... Rxa6 {[%clk
0:00:17.9]} 45. Rg6 {[%clk 0:00:07.2]} 45... Bf8 {[%clk 0:00:19.4]} 46. Bg3
{[%clk 0:00:07]} 46... d3 {[%clk 0:00:20]} 47. Bf4 {[%clk 0:00:08.3]} 47... Rd6
{[%clk 0:00:17.7]} 48. Bxd6 {[%clk 0:00:08.1]} 48... d2 {[%clk 0:00:18.5]} 49.
Rg1 {[%clk 0:00:08.9]} 49... Bxd6 {[%clk 0:00:20.3]} 50. Rd1 {[%clk 0:00:09.9]}
50... Bb4 {[%clk 0:00:21.2]} 51. Kg2 {[%clk 0:00:11.5]} 51... a5 {[%clk
0:00:22.5]} 52. Kf3 {[%clk 0:00:13.1]} 52... a4 {[%clk 0:00:24.1]} 53. Ke2
{[%clk 0:00:13.6]} 53... Kg7 {[%clk 0:00:19]} 54. Rb1 {[%clk 0:00:14.1]} 54...
Bc3 {[%clk 0:00:19.1]} 55. Rb7+ {[%clk 0:00:14.6]} 55... Kf8 {[%clk 0:00:19.2]}
56. Ra7 {[%clk 0:00:16.4]} 56... Ke8 {[%clk 0:00:15.6]} 57. Rxa4 {[%clk
0:00:17.4]} 57... Kd7 {[%clk 0:00:16.4]} 58. Ra6 {[%clk 0:00:16.6]} 58... Kc7
{[%clk 0:00:14.3]} 59. Ra3 {[%clk 0:00:14.2]} 59... Bb4 {[%clk 0:00:13.6]} 60.
Rb3 {[%clk 0:00:14.8]} 60... Bd6 {[%clk 0:00:12.1]} 61. Kxd2 {[%clk 0:00:14.6]}
61... Bxh2 {[%clk 0:00:12.5]} 62. Ke2 {[%clk 0:00:15.6]} 62... Bf4 {[%clk
0:00:12.4]} 63. Kf3 {[%clk 0:00:16.7]} 63... Bg5 {[%clk 0:00:14]} 64. Ke4 {[%clk
0:00:18]} 64... Kd6 {[%clk 0:00:15.5]} 65. Rb6+ {[%clk 0:00:18.8]} 65... Kc5
{[%clk 0:00:15.9]} 66. Re6 {[%clk 0:00:18.4]} 66... Kc4 {[%clk 0:00:16.8]} 67.
Rc6+ {[%clk 0:00:19.4]} 67... Kb5 {[%clk 0:00:15.5]} 68. Kd5 {[%clk 0:00:20.6]}
68... Kb4 {[%clk 0:00:17.1]} 69. Rc8 {[%clk 0:00:21.2]} 69... Kb5 {[%clk
0:00:17.2]} 70. Rb8+ {[%clk 0:00:22]} 70... Ka6 {[%clk 0:00:18.4]} 71. Ke6
{[%clk 0:00:22.7]} 71... Ka7 {[%clk 0:00:19.6]} 72. Rf8 {[%clk 0:00:23.4]} 72...
Kb7 {[%clk 0:00:20.1]} 73. Rxf6 {[%clk 0:00:25.3]} 1-0